[Event "POL-chT 2 Liga 2019"]
[Site "Poronin"]
[Date "2019.09.12"]
[Round "6.36"]
[White "Fraczek, Weronika"]
[Black "Kubicka, Anna"]
[Result "0-1"]
[ECO "B22"]
[WhiteElo "1875"]
[BlackElo "2225"]
[Annotator "NA"]
[PlyCount "120"]
[EventDate "2019.09.07"]
[EventType "team-tourn"]
[EventCountry "POL"]
[SourceTitle "playchess.com"]
[Source "ChessBase"]
[SourceQuality "1"]
[TimeControl "40/5400+30:1800+30"]

1. e4 {[%emt 0:00:00]} c5 {[%emt 0:00:00]} 2. c3 {[%emt 0:00:00]} Nf6 {[%emt 0:00:05]} 3. e5 {[%emt 0:00:00]} Nd5 {[%emt 0:00:03]} 4. d4 {[%emt 0:00:00]} cxd4 {[%emt 0:00:09]} 5. cxd4 {[%emt 0:00:05]} Nc6 {[%emt 0:00:25]} 6. Nf3 {[%emt 0:00:49]} d6 {[%emt 0:00:24]} 7. a3 {[%emt 0:04:57]} e6 {[%emt 0:02:34]} 8. Bc4 {[%emt 0:01:18]} Nb6 {[%emt 0:00:24]} 9. Bd3 {[%emt 0:00:19]} Qc7 {[%emt 0:03:06]} 10. Qc2 {[%emt 0:05:30]} dxe5 {[%emt 0:06:24]} 11. Nxe5 {[%emt 0:03:43]} Bd6 {[%emt 0:00:53]} 12. Nxc6 {[%emt 0:01:12]} bxc6 {[%emt 0:04:02]} 13. h3 {[%emt 0:06:58]} h6 {[%emt 0:00:05]} 14. Nc3 {[%emt 0:00:29]} Nd5 {[%emt 0:04:30]} 15. Nxd5 {[%emt 0:02:49]} cxd5 {[%emt 0:04:34]} 16. Qxc7 {[%emt 0:02:20]} Bxc7 {[%emt 0:00:03]} 17. Bd2 {[%emt 0:01:30]} Bb6 {[%emt 0:01:35]} 18. Bc3 {[%emt 0:00:38]} a5 {[%emt 0:01:25]} 19. a4 {[%emt 0:01:36]} Ba6 {[%emt 0:02:54]} 20. Kd2 {[%emt 0:01:10]} Kd7 {[%emt 0:02:10]} 21. f4 {[%emt 0:06:36]} Bxd3 {[%emt 0:03:35]} 22. Kxd3 {[%emt 0:00:07]} Bc7 {[%emt 0:01:23]} 23. Rhf1 {[%emt 0:01:46]} g6 {[%emt 0:00:14]} 24. Ra3 {[%emt 0:03:06]} Rab8 {[%emt 0:04:43]} 25. Kc2 {[%emt 0:05:56]} h5 {[%emt 0:04:49]} 26. Rb3 {[%emt 0:02:27]} Rxb3 {[%emt 0:00:06]} 27. Kxb3 {[%emt 0:00:04]} Rb8+ {[%emt 0:00:07]} 28. Kc2 {[%emt 0:00:21]} Ke7 {[%emt 0:02:32]} 29. Kd3 {[%emt 0:02:35]} Kf6 {[%emt 0:10:17]} 30. Rf2 {[%emt 0:07:26]} Kf5 {[%emt 0:00:55]} 31. g3 {[%emt 0:07:22]} Rb7 {[%emt 0:00:36]} 32. Ke3 {[%emt 0:03:58]} Rb3 {[%emt 0:01:52]} 33. Kd3 {[%emt 0:01:20]} Bd8 {[%emt 0:00:55]} 34. Re2 {[%emt 0:06:57]} Rb7 {[%emt 0:02:03]} 35. Re5+ {[%emt 0:01:25]} Kf6 {[%emt 0:00:05]} 36. Re2 {[%emt 0:00:41]} Bc7 {[%emt 0:00:10]} 37. Rf2 {[%emt 0:01:50]} Kf5 {[%emt 0:00:29]} 38. Ke3 {[%emt 0:01:43]} Rb3 {[%emt 0:13:33]} 39. Kd3 {[%emt 0:03:16]} Rb8 {[%emt 0:00:06]} 40. Ke3 {[%emt 0:00:00]} Bb6 {[%emt 0:00:00]} 41. Kd3 {[%emt 0:08:47]} Rc8 {[%emt 0:08:13]} 42. Rf1 {[%emt 0:04:06]} f6 {[%emt 0:07:22]} 43. Rc1 {[%emt 0:19:01]} Bd8 {[%emt 0:20:27]} 44. Rc2 {[%emt 0:03:28]} Rb8 {[%emt 0:00:25]} 45. Rf2 {[%emt 0:01:05]} Bc7 {[%emt 0:00:54]} 46. Rf1 {[%emt 0:03:09]} Bd6 {[%emt 0:01:12]} 47. Rf3 {[%emt 0:04:34]} Bb4 {[%emt 0:00:37]} 48. b3 {[%emt 0:00:55]} Bxc3 {[%emt 0:01:20]} 49. Kxc3 {[%emt 0:00:02]} Ke4 {[%emt 0:00:23]} 50. Rf1 {[%emt 0:01:54]} Rc8+ {[%emt 0:00:09]} 51. Kb2 {[%emt 0:00:48]} Kxd4 {[%emt 0:04:44]} 52. Rd1+ {[%emt 0:00:19]} Ke4 {[%emt 0:00:10]} 53. Re1+ {[%emt 0:00:20]} Kf5 {[%emt 0:00:23]} 54. b4 {[%emt 0:01:40]} axb4 {[%emt 0:04:32]} 55. a5 {[%emt 0:00:22]} Ra8 {[%emt 0:01:33]} 56. Kb3 {[%emt 0:00:33]} Rxa5 {[%emt 0:00:30]} 57. Kxb4 {[%emt 0:00:05]} Ra6 {[%emt 0:01:24]} 58. Kb5 {[%emt 0:00:41]} Rd6 {[%emt 0:01:34]} 59. Kc5 {[%emt 0:00:17]} Rd8 {[%emt 0:00:28]} 60. Kd4 {[%emt 0:00:20]} g5 {[%emt 0:01:15]} 0-1

[Event "POL-chT 2 Liga 2019"]
[Site "Poronin"]
[Date "2019.09.12"]
[Round "6.37"]
[White "Helis, Tadeusz"]
[Black "Sieciechowicz, Marcin"]
[Result "1/2-1/2"]
[ECO "A04"]
[WhiteElo "2166"]
[BlackElo "2364"]
[Annotator "NA"]
[PlyCount "42"]
[EventDate "2019.09.07"]
[EventType "team-tourn"]
[EventCountry "POL"]
[SourceTitle "playchess.com"]
[Source "ChessBase"]
[SourceQuality "1"]
[TimeControl "40/5400+30:1800+30"]

1. Nf3 {[%emt 0:00:00]} g6 {[%emt 0:00:00]} 2. c4 {[%emt 0:00:00]} Bg7 {[%emt 0:00:00]} 3. g3 {[%emt 0:00:00]} e5 {[%emt 0:01:43]} 4. Nc3 {[%emt 0:00:00]} Nc6 {[%emt 0:01:07]} 5. Bg2 {[%emt 0:00:02]} d6 {[%emt 0:00:22]} 6. d3 {[%emt 0:00:08]} h6 {[%emt 0:01:13]} 7. O-O {[%emt 0:01:10]} Be6 {[%emt 0:01:02]} 8. Nd5 {[%emt 0:03:20]} Qd7 {[%emt 0:01:32]} 9. Qa4 {[%emt 0:01:31]} Nge7 {[%emt 0:04:25]} 10. Ne1 {[%emt 0:03:02]} Bxd5 {[%emt 0:15:20]} 11. cxd5 {[%emt 0:00:32]} Nd4 {[%emt 0:00:16]} 12. Qd1 {[%emt 0:10:40]} c6 {[%emt 0:11:34]} 13. e3 {[%emt 0:04:26]} Nb5 {[%emt 0:02:29]} 14. dxc6 {[%emt 0:01:39]} bxc6 {[%emt 0:00:02]} 15. Qa4 {[%emt 0:12:15]} O-O {[%emt 0:05:36]} 16. Bd2 {[%emt 0:03:35]} d5 {[%emt 0:06:13]} 17. Rc1 {[%emt 0:10:17]} Qb7 {[%emt 0:06:26]} 18. Bb4 {[%emt 0:02:47]} Rfe8 {[%emt 0:02:13]} 19. Nc2 {[%emt 0:01:25]} a5 {[%emt 0:07:37]} 20. Bc5 {[%emt 0:01:50]} Nc8 {[%emt 0:04:34]} 21. Na3 {[%emt 0:04:33]} Nc7 {[%emt 0:04:49]} 1/2-1/2

[Event "POL-chT 2 Liga 2019"]
[Site "Poronin"]
[Date "2019.09.12"]
[Round "6.38"]
[White "Grela, Kacper"]
[Black "Okrucinski, Tadeusz"]
[Result "1-0"]
[ECO "B66"]
[WhiteElo "2346"]
[BlackElo "2164"]
[Annotator "NA"]
[PlyCount "66"]
[EventDate "2019.09.07"]
[EventType "team-tourn"]
[EventCountry "POL"]
[SourceTitle "playchess.com"]
[Source "ChessBase"]
[SourceQuality "1"]
[TimeControl "40/5400+30:1800+30"]

1. e4 c5 {[%emt 0:00:00]} 2. Nf3 {[%emt 0:00:00]} Nc6 {[%emt 0:00:09]} 3. d4 {[%emt 0:00:00]} cxd4 {[%emt 0:00:06]} 4. Nxd4 {[%emt 0:00:02]} Nf6 {[%emt 0:00:08]} 5. Nc3 {[%emt 0:00:07]} d6 {[%emt 0:00:08]} 6. Bg5 {[%emt 0:00:09]} e6 {[%emt 0:02:09]} 7. Qd2 {[%emt 0:00:26]} a6 {[%emt 0:00:10]} 8. O-O-O {[%emt 0:00:14]} h6 {[%emt 0:00:52]} 9. Nxc6 {[%emt 0:00:13]} bxc6 {[%emt 0:00:07]} 10. Bf4 {[%emt 0:00:08]} d5 {[%emt 0:03:05]} 11. Qe3 {[%emt 0:00:31]} Be7 {[%emt 0:05:36]} 12. Be2 {[%emt 0:03:01]} O-O {[%emt 0:02:26]} 13. e5 {[%emt 0:08:02]} Nd7 {[%emt 0:18:22]} 14. h4 {[%emt 0:02:41]} Qb6 {[%emt 0:20:56]} 15. Qg3 {[%emt 0:10:20]} Qc7 {[%emt 0:05:41]} 16. Rh3 {[%emt 0:18:37]} Kh8 {[%emt 0:05:47]} 17. Re1 {[%emt 0:04:30]} Rg8 {[%emt 0:03:40]} 18. Bh5 {[%emt 0:04:01]} g6 {[%emt 0:03:21]} 19. Bxh6 {[%emt 0:05:41]} Bf8 {[%emt 0:06:36]} 20. Bxf8 {[%emt 0:02:30]} gxh5 {[%emt 0:02:11]} 21. Bd6 {[%emt 0:02:34]} Rxg3 {[%emt 0:00:10]} 22. Bxc7 {[%emt 0:02:13]} Rxg2 {[%emt 0:00:19]} 23. Rf3 {[%emt 0:04:34]} Kg8 {[%emt 0:12:46]} 24. Ne2 {[%emt 0:04:57]} Rg4 {[%emt 0:00:47]} 25. Rg1 {[%emt 0:06:33]} Rxg1+ {[%emt 0:02:52]} 26. Nxg1 {[%emt 0:00:05]} f6 {[%emt 0:00:19]} 27. exf6 {[%emt 0:00:28]} Kf7 {[%emt 0:00:01]} 28. Nh3 {[%emt 0:00:23]} Bb7 {[%emt 0:01:25]} 29. Ng5+ {[%emt 0:00:59]} Kg6 {[%emt 0:00:01]} 30. f7 {[%emt 0:01:20]} c5 {[%emt 0:00:20]} 31. Bd6 {[%emt 0:00:41]} Nf8 {[%emt 0:00:10]} 32. Bxf8 {[%emt 0:00:06]} Rxf8 {[%emt 0:00:08]} 33. Nxe6 {[%emt 0:00:05]} Bc8 {[%emt 0:00:41]} 1-0

[Event "POL-chT 2 Liga 2019"]
[Site "Poronin"]
[Date "2019.09.12"]
[Round "6.39"]
[White "Walkusz, Witoslaw"]
[Black "Komendecki, Jacek"]
[Result "1-0"]
[ECO "B40"]
[WhiteElo "2061"]
[BlackElo "2073"]
[Annotator "NA"]
[PlyCount "47"]
[EventDate "2019.09.07"]
[EventType "team-tourn"]
[EventCountry "POL"]
[SourceTitle "playchess.com"]
[Source "ChessBase"]
[SourceQuality "1"]
[TimeControl "40/5400+30:1800+30"]

1. e4 {[%emt 0:00:00]} c5 {[%emt 0:00:00]} 2. Nf3 {[%emt 0:00:00]} e6 {[%emt 0:00:00]} 3. b3 {[%emt 0:00:04]} a6 {[%emt 0:01:19]} 4. Bb2 {[%emt 0:00:25]} Nc6 {[%emt 0:00:10]} 5. Bd3 {[%emt 0:05:56]} d5 {[%emt 0:03:26]} 6. O-O {[%emt 0:12:27]} d4 {[%emt 0:08:11]} 7. e5 {[%emt 0:04:04]} Nge7 {[%emt 0:25:12]} 8. c3 {[%emt 0:07:21]} dxc3 {[%emt 0:06:40]} 9. dxc3 {[%emt 0:00:52]} Qc7 {[%emt 0:03:07]} 10. Re1 {[%emt 0:03:53]} Ng6 {[%emt 0:03:41]} 11. c4 {[%emt 0:02:17]} Be7 {[%emt 0:01:36]} 12. Nbd2 {[%emt 0:08:40]} O-O {[%emt 0:14:47]} 13. g3 {[%emt 0:02:58]} b6 {[%emt 0:02:42]} 14. Qe2 {[%emt 0:05:43]} Bb7 {[%emt 0:02:54]} 15. Rad1 {[%emt 0:03:26]} Rad8 {[%emt 0:01:53]} 16. h4 {[%emt 0:00:27]} Rfe8 {[%emt 0:05:09]} 17. h5 {[%emt 0:04:41]} Nf8 {[%emt 0:00:02]} 18. Ne4 {[%emt 0:04:22]} h6 {[%emt 0:01:38]} 19. Nf6+ {[%emt 0:03:53]} Bxf6 {[%emt 0:07:31]} 20. exf6 {[%emt 0:00:07]} Nd4 {[%emt 0:05:32]} 21. Nxd4 {[%emt 0:01:27]} cxd4 {[%emt 0:00:22]} 22. Qg4 {[%emt 0:00:38]} g6 {[%emt 0:02:06]} 23. hxg6 {[%emt 0:00:08]} fxg6 {[%emt 0:01:27]} 24. Bxg6 {[%emt 0:00:30]} 1-0

[Event "POL-chT 2 Liga 2019"]
[Site "Poronin"]
[Date "2019.09.12"]
[Round "6.40"]
[White "Kowalak, Piotr"]
[Black "Kubica, Kamil"]
[Result "0-1"]
[ECO "C45"]
[WhiteElo "2108"]
[BlackElo "2099"]
[Annotator "NA"]
[PlyCount "104"]
[EventDate "2019.09.07"]
[EventType "team-tourn"]
[EventCountry "POL"]
[SourceTitle "playchess.com"]
[Source "ChessBase"]
[SourceQuality "1"]
[TimeControl "40/5400+30:1800+30"]

1. e4 {[%emt 0:00:00]} e5 {[%emt 0:00:00]} 2. Nf3 {[%emt 0:00:00]} Nc6 {[%emt 0:00:15]} 3. d4 {[%emt 0:00:24]} exd4 {[%emt 0:00:18]} 4. Nxd4 {[%emt 0:00:07]} Bc5 {[%emt 0:02:17]} 5. Be3 {[%emt 0:00:12]} Qf6 {[%emt 0:01:08]} 6. c3 {[%emt 0:00:09]} Nge7 {[%emt 0:02:04]} 7. Qd2 {[%emt 0:00:53]} a6 {[%emt 0:11:51]} 8. f4 {[%emt 0:05:14]} Bxd4 {[%emt 0:08:43]} 9. cxd4 {[%emt 0:00:45]} d5 {[%emt 0:00:06]} 10. Nc3 {[%emt 0:07:25]} O-O {[%emt 0:07:34]} 11. e5 {[%emt 0:10:41]} Qg6 {[%emt 0:01:35]} 12. Bd3 {[%emt 0:01:03]} Bf5 {[%emt 0:01:08]} 13. Bxf5 {[%emt 0:00:44]} Nxf5 {[%emt 0:00:43]} 14. O-O {[%emt 0:01:48]} Rad8 {[%emt 0:09:59]} 15. Rad1 {[%emt 0:06:01]} Nce7 {[%emt 0:06:03]} 16. Bf2 {[%emt 0:04:45]} h5 {[%emt 0:05:11]} 17. Qd3 {[%emt 0:06:39]} Qh6 {[%emt 0:00:58]} 18. Be1 {[%emt 0:01:48]} b6 {[%emt 0:04:26]} 19. Na4 {[%emt 0:05:51]} Qc6 {[%emt 0:05:18]} 20. b3 {[%emt 0:03:30]} Qb5 {[%emt 0:02:36]} 21. Rf3 {[%emt 0:06:34]} g6 {[%emt 0:01:27]} 22. Rc1 {[%emt 0:02:56]} Rc8 {[%emt 0:01:08]} 23. Bf2 {[%emt 0:01:01]} Ng7 {[%emt 0:01:26]} 24. h3 {[%emt 0:02:29]} Ne6 {[%emt 0:00:36]} 25. Qd2 {[%emt 0:03:03]} Qd7 {[%emt 0:09:13]} 26. g4 {[%emt 0:04:09]} Ng7 {[%emt 0:01:29]} 27. Rg3 {[%emt 0:01:04]} f5 {[%emt 0:04:25]} 28. exf6 {[%emt 0:06:43]} Rxf6 {[%emt 0:00:05]} 29. Be3 {[%emt 0:00:54]} hxg4 {[%emt 0:00:28]} 30. hxg4 {[%emt 0:00:03]} Ne8 {[%emt 0:05:48]} 31. Nc3 {[%emt 0:10:06]} Nd6 {[%emt 0:00:06]} 32. Qg2 {[%emt 0:00:24]} c6 {[%emt 0:02:39]} 33. Kf2 {[%emt 0:03:41]} Rcf8 {[%emt 0:01:14]} 34. Re1 {[%emt 0:02:38]} b5 {[%emt 0:01:36]} 35. b4 {[%emt 0:00:55]} a5 {[%emt 0:00:07]} 36. a3 {[%emt 0:00:12]} axb4 {[%emt 0:00:10]} 37. axb4 {[%emt 0:00:01]} Nc4 {[%emt 0:00:14]} 38. Bc1 Re6 {[%emt 0:00:17]} 39. Rh1 {[%emt 0:01:47]} Qa7 {[%emt 0:01:49]} 40. Ne2 {[%emt 0:00:00]} Qa2 {[%emt 0:00:00]} 41. Re1 {[%emt 0:03:49]} Re8 {[%emt 0:02:07]} 42. Kf1 {[%emt 0:02:48]} Nc8 {[%emt 0:06:24]} 43. f5 {[%emt 0:01:40]} Re4 {[%emt 0:03:48]} 44. fxg6 {[%emt 0:03:52]} Qc2 {[%emt 0:03:08]} 45. Qh2 {[%emt 0:04:53]} R4e7 {[%emt 0:02:29]} 46. Rh3 {[%emt 0:07:34]} Qxg6 {[%emt 0:00:15]} 47. Rh8+ {[%emt 0:00:22]} Kg7 {[%emt 0:00:06]} 48. Rh6 {[%emt 0:10:13]} Rf7+ {[%emt 0:02:29]} 49. Kg2 {[%emt 0:00:35]} Qxg4+ {[%emt 0:00:16]} 50. Ng3 {[%emt 0:00:10]} Qf3+ {[%emt 0:00:21]} 51. Kh3 {[%emt 0:00:52]} Rxe1 {[%emt 0:00:16]} 52. Kh4 {[%emt 0:01:19]} Rf4+ {[%emt 0:00:35]} 0-1

[Event "POL-chT 2 Liga 2019"]
[Site "Poronin"]
[Date "2019.09.12"]
[Round "6.41"]
[White "Rawski, Slawomir"]
[Black "Krawiec, Grzegorz"]
[Result "0-1"]
[ECO "A04"]
[WhiteElo "2056"]
[BlackElo "1792"]
[Annotator "NA"]
[PlyCount "48"]
[EventDate "2019.09.07"]
[EventType "team-tourn"]
[EventCountry "POL"]
[SourceTitle "playchess.com"]
[Source "ChessBase"]
[SourceQuality "1"]
[TimeControl "40/5400+30:1800+30"]

1. Nf3 {[%emt 0:00:00]} c5 {[%emt 0:00:37]} 2. b3 {[%emt 0:00:00]} d6 {[%emt 0:02:07]} 3. Bb2 {[%emt 0:03:03]} e5 {[%emt 0:00:10]} 4. e3 {[%emt 0:00:22]} Nf6 {[%emt 0:00:37]} 5. d4 {[%emt 0:00:42]} exd4 {[%emt 0:06:19]} 6. exd4 {[%emt 0:00:11]} Be7 {[%emt 0:01:30]} 7. Bd3 {[%emt 0:12:17]} Bg4 {[%emt 0:02:27]} 8. O-O {[%emt 0:12:21]} O-O {[%emt 0:01:09]} 9. Re1 {[%emt 0:00:55]} Nbd7 {[%emt 0:03:22]} 10. c4 {[%emt 0:04:16]} d5 {[%emt 0:11:44]} 11. Qe2 {[%emt 0:10:16]} Re8 {[%emt 0:02:32]} 12. cxd5 {[%emt 0:02:39]} Nb6 {[%emt 0:00:33]} 13. Bb5 {[%emt 0:02:26]} Bd7 {[%emt 0:03:07]} 14. Ne5 Bxb5 {[%emt 0:02:50]} 15. Qxb5 {[%emt 0:07:35]} cxd4 {[%emt 0:00:03]} 16. Bxd4 {[%emt 0:08:18]} Qxd5 {[%emt 0:03:04]} 17. Qxd5 {[%emt 0:01:36]} Nfxd5 {[%emt 0:07:03]} 18. Nc3 {[%emt 0:05:12]} Bb4 {[%emt 0:10:23]} 19. Nxd5 {[%emt 0:02:17]} Nxd5 {[%emt 0:00:04]} 20. Red1 {[%emt 0:00:40]} Nc3 {[%emt 0:03:34]} 21. a3 {[%emt 0:11:46]} Nxd1 {[%emt 0:01:59]} 22. axb4 {[%emt 0:00:07]} Rad8 {[%emt 0:00:02]} 23. Rxd1 Rxe5 {[%emt 0:00:05]} 24. Rc1 {[%emt 0:03:03]} Red5 {[%emt 0:00:12]} 0-1

[Event "POL-chT 2 Liga 2019"]
[Site "Poronin"]
[Date "2019.09.12"]
[Round "6.42"]
[White "Karykowska, Anna"]
[Black "Dziodzio, Angelika"]
[Result "1-0"]
[ECO "B07"]
[WhiteElo "1895"]
[BlackElo "2117"]
[Annotator "NA"]
[PlyCount "63"]
[EventDate "2019.09.07"]
[EventType "team-tourn"]
[EventCountry "POL"]
[SourceTitle "playchess.com"]
[Source "ChessBase"]
[SourceQuality "1"]
[TimeControl "40/5400+30:1800+30"]

1. e4 {[%emt 0:00:00]} d6 {[%emt 0:00:00]} 2. d4 {[%emt 0:00:00]} Nf6 {[%emt 0:00:02]} 3. Nc3 {[%emt 0:00:00]} Nbd7 {[%emt 0:00:05]} 4. g4 {[%emt 0:00:16]} h6 {[%emt 0:01:35]} 5. h3 {[%emt 0:00:31]} e5 {[%emt 0:01:30]} 6. Nge2 {[%emt 0:00:29]} g5 {[%emt 0:03:13]} 7. Ng3 {[%emt 0:03:42]} exd4 {[%emt 0:01:44]} 8. Qxd4 {[%emt 0:00:31]} Ne5 {[%emt 0:00:28]} 9. Bg2 {[%emt 0:01:33]} Be6 {[%emt 0:09:20]} 10. Nf5 {[%emt 0:06:34]} Rg8 {[%emt 0:14:12]} 11. f4 {[%emt 0:13:05]} gxf4 {[%emt 0:14:13]} 12. Bxf4 {[%emt 0:00:36]} Nfxg4 {[%emt 0:00:36]} 13. hxg4 {[%emt 0:02:53]} Rxg4 {[%emt 0:01:03]} 14. Qf2 {[%emt 0:04:58]} Ng6 {[%emt 0:17:13]} 15. Be3 {[%emt 0:04:27]} Ne5 {[%emt 0:03:53]} 16. O-O-O {[%emt 0:05:05]} Nc4 {[%emt 0:04:17]} 17. Bf3 {[%emt 0:03:53]} Nxe3 {[%emt 0:05:01]} 18. Qxe3 {[%emt 0:01:52]} Rg6 {[%emt 0:04:55]} 19. Bh5 {[%emt 0:05:07]} Rg5 {[%emt 0:02:48]} 20. Nd5 {[%emt 0:02:45]} c6 {[%emt 0:03:30]} 21. Nd4 {[%emt 0:04:25]} Kd7 {[%emt 0:01:55]} 22. Nc3 {[%emt 0:06:50]} Qa5 {[%emt 0:03:44]} 23. Qf4 {[%emt 0:04:22]} Rg7 {[%emt 0:05:31]} 24. Nf5 {[%emt 0:07:28]} Bxf5 {[%emt 0:00:31]} 25. exf5 {[%emt 0:00:03]} d5 {[%emt 0:00:39]} 26. f6 {[%emt 0:02:13]} Rg2 {[%emt 0:00:05]} 27. Bg4+ {[%emt 0:03:24]} Kd8 {[%emt 0:00:32]} 28. Qf5 {[%emt 0:01:26]} Kc7 {[%emt 0:00:45]} 29. Nxd5+ {[%emt 0:05:00]} cxd5 {[%emt 0:00:19]} 30. Rxd5 {[%emt 0:00:30]} Qb4 {[%emt 0:00:22]} 31. Rd7+ {[%emt 0:01:32]} Kb6 {[%emt 0:00:07]} 32. Bf3 {[%emt 0:01:10]} 1-0

[Event "POL-chT 2 Liga 2019"]
[Site "Poronin"]
[Date "2019.09.12"]
[Round "6.43"]
[White "Budrewicz, Krzysztof"]
[Black "Chojnacki, Krzysztof"]
[Result "0-1"]
[ECO "D30"]
[WhiteElo "2275"]
[BlackElo "2362"]
[Annotator "NA"]
[PlyCount "128"]
[EventDate "2019.09.07"]
[EventType "team-tourn"]
[EventCountry "POL"]
[SourceTitle "playchess.com"]
[Source "ChessBase"]
[SourceQuality "1"]
[TimeControl "40/5400+30:1800+30"]

1. d4 {[%emt 0:00:00]} d5 {[%emt 0:00:00]} 2. c4 {[%emt 0:00:00]} e6 {[%emt 0:00:00]} 3. Nf3 {[%emt 0:00:13]} a6 {[%emt 0:00:00]} 4. cxd5 {[%emt 0:01:06]} exd5 {[%emt 0:00:02]} 5. Nc3 {[%emt 0:00:04]} Nf6 {[%emt 0:00:17]} 6. Bg5 {[%emt 0:00:22]} Be6 {[%emt 0:00:40]} 7. e3 {[%emt 0:00:38]} Nbd7 {[%emt 0:00:44]} 8. Bd3 {[%emt 0:02:22]} h6 {[%emt 0:02:22]} 9. Bh4 {[%emt 0:00:36]} g5 {[%emt 0:02:36]} 10. Bg3 {[%emt 0:00:12]} Nh5 {[%emt 0:00:14]} 11. Be5 {[%emt 0:04:20]} Ng7 {[%emt 0:01:02]} 12. h3 {[%emt 0:01:15]} Nxe5 {[%emt 0:01:20]} 13. Nxe5 {[%emt 0:00:35]} Bd6 {[%emt 0:00:39]} 14. O-O {[%emt 0:01:35]} c6 {[%emt 0:09:26]} 15. Rc1 {[%emt 0:11:35]} h5 {[%emt 0:03:28]} 16. f4 {[%emt 0:13:02]} gxf4 {[%emt 0:17:46]} 17. Rxf4 {[%emt 0:01:17]} Bxe5 {[%emt 0:02:07]} 18. dxe5 {[%emt 0:00:06]} Qg5 {[%emt 0:00:42]} 19. Qf3 {[%emt 0:01:33]} Qxe5 {[%emt 0:03:29]} 20. e4 {[%emt 0:03:28]} d4 {[%emt 0:02:39]} 21. Na4 {[%emt 0:02:24]} Qa5 {[%emt 0:03:44]} 22. b3 {[%emt 0:00:44]} Qd2 {[%emt 0:03:32]} 23. Rc2 {[%emt 0:04:00]} Qe3+ {[%emt 0:01:51]} 24. Qxe3 {[%emt 0:00:15]} dxe3 {[%emt 0:00:02]} 25. Re2 {[%emt 0:00:20]} Rd8 {[%emt 0:05:42]} 26. Rxe3 {[%emt 0:01:38]} Ke7 {[%emt 0:05:36]} 27. Ref3 {[%emt 0:00:25]} Kd6 {[%emt 0:01:37]} 28. Nb6 {[%emt 0:04:56]} Kc5 {[%emt 0:06:36]} 29. Nc4 {[%emt 0:01:20]} Rhf8 {[%emt 0:10:38]} 30. a3 {[%emt 0:01:49]} b5 {[%emt 0:02:42]} 31. b4+ {[%emt 0:05:28]} Kd4 {[%emt 0:00:02]} 32. Na5 {[%emt 0:01:37]} Rc8 {[%emt 0:00:45]} 33. Nb7 {[%emt 0:01:10]} Ke5 {[%emt 0:01:22]} 34. Nc5 {[%emt 0:00:36]} Ra8 {[%emt 0:00:41]} 35. Bc2 {[%emt 0:07:55]} a5 {[%emt 0:02:54]} 36. Nd3+ {[%emt 0:01:40]} Kd6 {[%emt 0:00:42]} 37. e5+ {[%emt 0:02:22]} Ke7 {[%emt 0:00:27]} 38. Rf2 {[%emt 0:12:51]} axb4 {[%emt 0:01:18]} 39. axb4 {[%emt 0:00:04]} Ra2 {[%emt 0:03:38]} 40. Nc5 {[%emt 0:00:00]} Rb2 {[%emt 0:00:00]} 41. Nxe6 {[%emt 0:15:44]} Nxe6 {[%emt 0:02:58]} 42. Rh4 {[%emt 0:00:28]} Ra8 {[%emt 0:04:22]} 43. Bd3 {[%emt 0:04:00]} Rb3 {[%emt 0:08:05]} 44. Bf1 {[%emt 0:00:31]} Ra4 {[%emt 0:00:45]} 45. Rxh5 {[%emt 0:01:24]} Rbxb4 {[%emt 0:00:16]} 46. g3 {[%emt 0:00:14]} Ra3 {[%emt 0:00:53]} 47. Kh2 {[%emt 0:00:06]} Nd4 {[%emt 0:02:48]} 48. Bg2 {[%emt 0:03:54]} Rbb3 {[%emt 0:01:14]} 49. g4 {[%emt 0:05:41]} Nf3+ {[%emt 0:01:46]} 50. Kh1 {[%emt 0:00:09]} Rb1+ {[%emt 0:02:30]} 51. Bf1 {[%emt 0:00:09]} Re1 {[%emt 0:00:01]} 52. Kg2 {[%emt 0:00:19]} Nxe5 {[%emt 0:00:35]} 53. Rhf5 {[%emt 0:00:06]} Ree3 {[%emt 0:04:54]} 54. Rc2 {[%emt 0:04:12]} b4 {[%emt 0:00:51]} 55. Kf2 {[%emt 0:01:06]} Rf3+ {[%emt 0:00:54]} 56. Rxf3 {[%emt 0:00:05]} Rxf3+ {[%emt 0:00:02]} 57. Ke2 {[%emt 0:00:07]} b3 {[%emt 0:02:08]} 58. Rc1 {[%emt 0:01:35]} Kd6 {[%emt 0:00:58]} 59. h4 {[%emt 0:01:03]} Rf4 {[%emt 0:01:42]} 60. Rb1 {[%emt 0:00:38]} Rxg4 {[%emt 0:01:04]} 61. Rxb3 {[%emt 0:00:17]} Rxh4 {[%emt 0:00:06]} 62. Bg2 {[%emt 0:00:20]} Ra4 {[%emt 0:00:46]} 63. Rb2 {[%emt 0:00:09]} Ra3 {[%emt 0:00:36]} 64. Be4 {[%emt 0:00:19]} Nc4 {[%emt 0:00:38]} 0-1